fUSD/lending_fUSD_20250227
["ID","MTS","AMOUNT","RATE_DAILY","PERIOD"]
[354774350,1740682246599,-151.0,0.000195,2]
[354774351,1740682246609,-151.0,0.000195,2]
[354774352,1740682246618,-249.424748,0.000195,2]
[354774353,1740682246628,-284.559444,0.000195,2]
[354774354,1740682246637,-151.0,0.000195,2]
[354774355,1740682246647,-284.559444,0.000195,2]
[354774356,1740682246657,-151.0,0.000195,2]
[354774357,1740682246666,-203.91694091,0.000195,2]
[354774358,1740682246676,-203.91694076,0.000195,2]
[354774359,1740682246686,-203.91694076,0.000195,2]
[354774360,1740682246695,-1328.25979385,0.00019521,2]
[354774361,1740682246705,-517.81438,0.0001975,2]
[354774362,1740682246715,-183.72800085,0.000199,2]
[354774363,1740682246724,-300.0,0.00019999,2]
[354774364,1740682246734,-12701.7977984,0.00019999,2]
[354774365,1740682246743,-151.0,0.00019999,2]
[354774366,1740682246752,-164.023401,0.00019999,2]
[354774367,1740682246762,-164.023401,0.00019999,2]
[354774368,1740682246771,-151.0,0.00019999,2]
[354774369,1740682246780,-151.0,0.00019999,2]
[354774370,1740682246789,-151.0,0.00019999,2]
[354774371,1740682246799,-174.93,0.00019999,2]
[354774372,1740682246811,-174.93,0.00019999,2]
[354774373,1740682246820,-245.410453,0.00019999,2]
[354774374,1740682246829,-151.0,0.00019999,2]
[354774375,1740682246838,-452.345356,0.00019999,2]
[354774376,1740682246847,-452.345356,0.00019999,2]
[354774377,1740682246856,-215.731132,0.00019999,2]
[354774378,1740682246865,-215.731132,0.00019999,2]
[354774379,1740682246874,-151.0,0.00019999,2]
[354774380,1740682246883,-151.0,0.00019999,2]
[354774381,1740682246892,-231.988162,0.00019999,2]
[354774382,1740682246901,-231.988162,0.00019999,2]
[354774383,1740682246910,-176.262424,0.00019999,2]
[354774384,1740682246919,-151.0,0.00019999,2]
[354774385,1740682246928,-378.525501,0.00019999,2]
[354774386,1740682246937,-378.525501,0.00019999,2]
[354774387,1740682246946,-219.024794,0.00019999,2]
[354774388,1740682246955,-196.081555,0.00019999,2]
[354774389,1740682246964,-196.081555,0.00019999,2]
[354774390,1740682246973,-151.0,0.00019999,2]
[354774391,1740682246983,-151.0,0.00019999,2]
[354774392,1740682246992,-792.403415,0.00019999,2]
[354774393,1740682247001,-792.403415,0.00019999,2]
[354774394,1740682247012,-91229.86342993,0.0002,2]
[354774395,1740682247021,-10769.89661345,0.0002,15]
[354774396,1740682247031,-1013.0,0.0002,6]
[354774397,1740682247040,-799.3254699,0.0002,7]
[354774398,1740682247050,-151.63696306,0.0002,2]
[354774399,1740682247061,-151.0,0.0002,2]
[354774400,1740682247234,-151.0,0.0002,2]
[354774401,1740682247244,-151.0,0.0002,2]
[354774402,1740682247254,-151.0,0.0002,2]
[354774403,1740682247263,-151.708644,0.0002,2]
[354774404,1740682247273,-190.529404,0.0002,2]
[354774405,1740682247282,-151.0,0.0002,2]
[354774406,1740682247292,-208.588606,0.0002,2]
[354774407,1740682247302,-208.588606,0.0002,2]
[354774408,1740682247311,-151.0,0.0002,2]
[354774409,1740682247320,-151.0,0.0002,2]
[354774410,1740682247329,-241.772781,0.0002,2]
[354774411,1740682247339,-241.772781,0.0002,2]
[354774412,1740682247348,-151.0,0.0002,2]
[354774413,1740682247357,-192.261589,0.0002,2]
[354774414,1740682247366,-288.644351,0.0002,2]
[354774415,1740682247375,-151.0,0.0002,2]
[354774416,1740682247385,-151.0,0.0002,2]
[354774417,1740682247394,-255.363403,0.0002,2]
[354774418,1740682247404,-255.363403,0.0002,2]
[354774419,1740682247413,-283.369062,0.0002,2]
[354774420,1740682247422,-151.0,0.0002,2]
[354774421,1740682247431,-151.0,0.0002,2]
[354774422,1740682247440,-155.927564,0.0002,2]
[354774423,1740682247450,-151.0,0.0002,2]
[354774424,1740682247460,-151.0,0.0002,2]
[354774425,1740682247469,-151.0,0.0002,2]
[354774426,1740682247478,-174.552719,0.0002,2]
[354774427,1740682247487,-174.552719,0.0002,2]
[354774428,1740682247496,-151.0,0.0002,2]
[354774429,1740682247505,-151.0,0.0002,2]
[354774430,1740682247515,-284.559444,0.0002,2]
[354774431,1740682247524,-151.0,0.0002,2]
[354774432,1740682247534,-284.559444,0.0002,2]
[354774433,1740682247543,-151.957873,0.0002,2]
[354774434,1740682247554,-151.0,0.0002,2]
[354774435,1740682247564,-13848.5247946,0.0002,2]
[354774436,1740682247573,-164.023401,0.0002,2]
[354774437,1740682247583,-164.023401,0.0002,2]
[354774438,1740682247592,-151.0,0.0002,2]
[354774439,1740682247601,-151.0,0.0002,2]
[354774440,1740682247611,-151.0,0.0002,2]
[354774441,1740682247620,-174.93,0.0002,2]
[354774442,1740682247629,-174.93,0.0002,2]
[354774443,1740682247639,-151.0,0.0002,2]
[354774444,1740682247648,-452.345356,0.0002,2]
[354774445,1740682247658,-452.345356,0.0002,2]
[354774446,1740682247667,-1986.7470544,0.0002,2]
[354774447,1740682247677,-215.731132,0.0002,2]
[354774448,1740682247687,-215.731132,0.0002,2]
[354774449,1740682247695,-151.0,0.0002,2]
[354774450,1740682247704,-231.988162,0.0002,2]
[354774451,1740682247714,-231.988162,0.0002,2]
[354774452,1740682247723,-151.0,0.0002,2]
[354774453,1740682247732,-378.525501,0.0002,2]
[354774454,1740682247741,-378.525501,0.0002,2]
[354774455,1740682247750,-1109.90660144,0.0002,4]
[354774456,1740682247759,-196.081555,0.0002,2]
[354774457,1740682247768,-196.081555,0.0002,2]
[354774458,1740682247777,-151.0,0.0002,2]
[354774459,1740682247786,-151.0,0.0002,2]
[354774460,1740682247795,-792.403415,0.0002,2]
[354774461,1740682247806,-792.403415,0.0002,2]
[354774462,1740682247816,-3649.8845528,0.0002013,2]
[354774463,1740682247825,-221.682159,0.00020144,2]
[354774464,1740682247834,-160.597066,0.00020144,2]
[354774465,1740682247843,-151.0,0.00020144,2]
[354774466,1740682247852,-151.0,0.00020144,2]
[354774467,1740682247861,-151.0,0.00020144,2]
[354774468,1740682247870,-174.552719,0.00020144,2]
[354774469,1740682247879,-174.552719,0.00020144,2]
[354774470,1740682247888,-257.873646,0.00020144,2]
[354774471,1740682247897,-151.0,0.00020144,2]
[354774472,1740682247908,-284.559444,0.00020144,2]
[354774473,1740682247917,-151.0,0.00020144,2]
[354774474,1740682247926,-284.559444,0.00020144,2]
[354774475,1740682247935,-155.625095,0.00020144,2]
[354774476,1740682247944,-164.023401,0.00020144,2]
[354774477,1740682247954,-164.023401,0.00020144,2]
[354774478,1740682247963,-151.0,0.00020144,2]
[354774479,1740682247973,-151.0,0.00020144,2]
[354774480,1740682247982,-174.93,0.00020144,2]
[354774481,1740682247991,-174.93,0.00020144,2]
[354774482,1740682248000,-151.0,0.00020144,2]
[354774483,1740682248012,-452.345356,0.00020144,2]
[354774484,1740682248022,-452.345356,0.00020144,2]
[354774485,1740682248031,-215.731132,0.00020144,2]
[354774486,1740682248041,-215.731129,0.00020144,2]
[354774487,1740682248050,-231.988162,0.00020144,2]
[354774488,1740682248060,-151.0,0.00020144,2]
[354774489,1740682248069,-231.988169,0.00020144,2]
[354774490,1740682248078,-151.0,0.00020144,2]
[354774491,1740682248088,-378.525501,0.00020144,2]
[354774492,1740682248098,-378.525498,0.00020144,2]
[354774493,1740682248107,-196.081555,0.00020144,2]
[354774494,1740682248116,-196.081554,0.00020144,2]
[354774495,1740682248126,-151.0,0.00020144,2]
[354774496,1740682248135,-151.0,0.00020144,2]
[354774497,1740682248144,-792.403415,0.00020144,2]
[354774498,1740682248154,-792.403418,0.00020144,2]
[354774499,1740682248163,-151.0,0.000202,2]
[354774500,1740682248172,-255.97872863,0.000202,2]
[354774501,1740682248182,-155.650989,0.000202,2]
[354774502,1740682248191,-151.0,0.000202,2]
[354774503,1740682248201,-255.363403,0.000202,2]
[354774504,1740682248210,-255.363403,0.000202,2]
[354774505,1740682248219,-735.62,0.00020362,2]
[354774506,1740682248228,-241.772781,0.00020453,2]
[354774507,1740682248237,-241.772781,0.00020453,2]
[354774508,1740682248247,-208.588606,0.00020846,2]
[354774509,1740682248256,-208.588606,0.00020846,2]
[354774510,1740682248265,-151.0,0.00020846,2]
[354774511,1740682248274,-151.0,0.00020846,2]
[354774512,1740682248283,-500.0,0.00021,2]
[354774513,1740682248293,-250.0,0.00021,2]
[354774514,1740682248302,-203.91694076,0.0002115,2]
[354774515,1740682248312,-326.71,0.00021394,2]
[354774516,1740682248321,-1000.0,0.00021417,2]
[354774517,1740682248330,-235.71910536,0.00021567,2]
[354774518,1740682248350,-4248.23191707,0.00021579,2]
[354774519,1740682248359,-471.71963867,0.00021601,2]
[354774520,1740682248369,-562.1,0.00021794,2]
[354774521,1740682248379,-929.0,0.000219,2]
[354774522,1740682248389,-980.9,0.000219,2]
[354774523,1740682248401,-367.0,0.000219,2]
[354774524,1740682248411,-748.0,0.000219,2]
[354774525,1740682248421,-179.88,0.00021918,2]
[354774526,1740682248431,-151.0,0.00021918,2]
[354774527,1740682248440,-247.451812,0.00021918,2]
[354774528,1740682248450,-500.0,0.00021918,2]
[354774529,1740682248460,-500.0,0.00021945,2]
[354774530,1740682248470,-500.0,0.00021973,2]
[354774531,1740682248479,-151.0,0.00021973,7]
[354774532,1740682248489,-255.363403,0.00021973,7]
[354774533,1740682248499,-255.363403,0.00021973,7]
[354774534,1740682248509,-1723.01145232,0.00021982,2]
[354774535,1740682248518,-2542.41797599,0.00022,7]
[354774536,1740682248528,-151.0,0.00022,7]
[354774537,1740682248538,-500.0,0.00022,2]
[354774538,1740682248548,-500.0,0.00022028,2]
[354774539,1740682248559,-500.0,0.00022055,2]
[354774540,1740682248569,-524.13465511,0.00022082,2]
[354774541,1740682248578,-329.91563915,0.0002215,2]
[354774542,1740682248590,-517.81438,0.0002225,2]
[354774543,1740682248600,-500.0,0.00022335,2]
[354774544,1740682248609,-2900.0,0.000225,15]
[354774545,1740682248619,-151.0,0.000225,7]
[354774546,1740682248629,-151.0,0.000225,7]
[354774547,1740682248639,-174.552719,0.000225,7]
[354774548,1740682248648,-174.552719,0.000225,7]
[354774549,1740682248658,-151.0,0.000225,7]
[354774550,1740682248667,-284.559444,0.000225,7]
[354774551,1740682248676,-151.0,0.000225,7]
[354774552,1740682248686,-284.559444,0.000225,7]
[354774553,1740682248696,-735.62,0.00022626,2]
[354774554,1740682248705,-203.91694076,0.000229,3]
[354774555,1740682248715,-300.0,0.00023,2]
[354774556,1740682248724,-326.71,0.00023339,2]
[354774557,1740682248734,-1000.0,0.00023364,2]
[354774558,1740682248743,-155.3,0.00023396,2]
[354774559,1740682248752,-187.98,0.00023551,2]
[354774560,1740682248762,-199.38,0.00023836,2]
[354774561,1740682248771,-9757.03950969,0.00024,14]
[354774562,1740682248781,-382.04769563,0.00024,6]
[354774563,1740682248791,-153.994962,0.00024,7]
[354774564,1740682248800,-203.91694076,0.0002465,3]
[354774565,1740682248811,-295.0,0.00024682,30]
[354774566,1740682248821,-295.0,0.00024692,30]
[354774567,1740682248831,-295.0,0.00024702,30]
[354774568,1740682248840,-164.023401,0.00024712,7]
[354774569,1740682248850,-164.023401,0.00024712,7]
[354774570,1740682248859,-165.57,0.00024712,30]
[354774571,1740682248868,-517.81438,0.0002475,2]
[354774572,1740682248877,-151.0,0.0002485,7]
[354774573,1740682248887,-735.62,0.0002489,2]
[354774574,1740682248897,-151.0,0.000249,7]
[354774575,1740682248906,-151.0,0.000249,7]
[354774576,1740682248915,-174.93,0.000249,7]
[354774577,1740682248925,-174.93,0.000249,7]
[354774578,1740682248934,-157.144293,0.000249,7]
[354774579,1740682248944,-452.345356,0.000249,7]
[354774580,1740682248954,-452.34535,0.000249,7]
[354774581,1740682248963,-151.0,0.000249,7]
[354774582,1740682248973,-4248.23191707,0.00024919,2]
[354774583,1740682248982,-471.71963867,0.00024952,2]
[354774584,1740682248991,-151.0,0.00025,7]
[354774585,1740682249000,-241.772781,0.00025,7]
[354774586,1740682249010,-241.772781,0.00025,7]
[354774587,1740682249020,-350.0,0.00025,2]
[354774588,1740682249030,-500.0,0.000251,2]
[354774589,1740682249040,-208.588606,0.0002511,7]
[354774590,1740682249051,-208.588606,0.0002511,7]
[354774591,1740682249062,-2187.78690079,0.0002597,2]
[354774592,1740682249073,-203.91694076,0.000264,4]
[354774593,1740682249083,-154.75,0.00026849,2]
[354774594,1740682249096,-206.0,0.00026849,2]
[354774595,1740682249107,-159.83,0.00026849,2]
[354774596,1740682249118,-28306.25788575,0.00027,14]
[354774597,1740682249127,-151.0,0.00027,7]
[354774598,1740682249137,-153.780675,0.00027,7]
[354774599,1740682249147,-151.0,0.00027,7]
[354774600,1740682249157,-208.588606,0.00027,7]
[354774601,1740682249166,-208.588606,0.00027,7]
[354774602,1740682249176,-151.0,0.00027,7]
[354774603,1740682249186,-151.0,0.00027,7]
[354774604,1740682249195,-153.799218,0.00027,7]
[354774605,1740682249206,-151.0,0.00027,7]
[354774606,1740682249215,-255.363403,0.00027,7]
[354774607,1740682249225,-255.363403,0.00027,7]
[354774608,1740682249235,-151.0,0.00027,7]
[354774609,1740682249244,-273.637422,0.00027,7]
[354774610,1740682249254,-174.552719,0.00027,7]
[354774611,1740682249263,-174.552719,0.00027,7]
[354774612,1740682249273,-151.0,0.00027,7]
[354774613,1740682249283,-284.559444,0.00027,7]
[354774614,1740682249292,-151.0,0.00027,7]
[354774615,1740682249302,-284.559444,0.00027,7]
[354774616,1740682249312,-400.0,0.00027,2]
[354774617,1740682249321,-735.62,0.00027153,2]
[354774618,1740682249331,-151.0,0.00027245,7]
[354774619,1740682249341,-517.81437,0.0002725,2]
[354774620,1740682249350,-154.15,0.00027397,2]
[354774621,1740682249360,-503.70486093,0.00027814,5]
[354774622,1740682249369,-203.91694076,0.0002815,5]
[354774623,1740682249379,-241.772781,0.00028233,7]
[354774624,1740682249388,-241.772781,0.00028233,7]
[354774625,1740682249398,-235.71910536,0.00028233,2]
[354774626,1740682249407,-4248.23191707,0.00028258,2]
[354774627,1740682249417,-471.71963867,0.00028303,2]
[354774628,1740682249426,-500.0,0.00028383,5]
[354774629,1740682249436,-500.0,0.00028547,5]
[354774630,1740682249445,-752.0,0.00029,30]
[354774631,1740682249454,-450.0,0.00029,2]
[354774632,1740682249464,-500.0,0.00029122,5]
[354774633,1740682249473,-154.076058,0.00029217,7]
[354774634,1740682249482,-151.0,0.00029217,7]
[354774635,1740682249491,-151.0,0.00029217,7]
[354774636,1740682249501,-151.0,0.00029217,7]
[354774637,1740682249510,-208.588606,0.00029217,7]
[354774638,1740682249520,-208.588614,0.00029217,7]
[354774639,1740682249529,-260.436088,0.00029217,7]
[354774640,1740682249538,-151.0,0.00029217,7]
[354774641,1740682249548,-241.772781,0.00029217,7]
[354774642,1740682249558,-241.772785,0.00029217,7]
[354774643,1740682249568,-11004.46147,0.00029224,2]
[354774644,1740682249577,-10497.88881124,0.00029224,3]
[354774645,1740682249587,-49122.54388603,0.00029224,2]
[354774646,1740682249597,-14713.59629702,0.00029224,3]
[354774647,1740682249607,-151.0,0.00029224,7]
[354774648,1740682249616,-255.363403,0.00029224,7]
[354774649,1740682249626,-255.363405,0.00029224,7]
[354774650,1740682249635,-151.0,0.00029224,7]
[354774651,1740682249645,-174.552719,0.00029224,7]
[354774652,1740682249654,-174.55272,0.00029224,7]
[354774653,1740682249663,-151.0,0.00029224,7]
[354774654,1740682249673,-284.559444,0.00029224,7]
[354774655,1740682249682,-151.0,0.00029224,7]
[354774656,1740682249691,-284.559437,0.00029224,7]
[354774657,1740682249700,-1016.43388317,0.00029228,30]
[354774658,1740682249709,-735.62,0.00029417,2]
[354774659,1740682249718,-151.0,0.00029899,7]
[354774660,1740682249727,-151.0,0.00029899,7]
[354774661,1740682249736,-70759.58157645,0.000299,2]
[354774662,1740682249745,-203.91694076,0.000299,5]
[354774663,1740682249754,-168.42166438,0.0003,2]
[354774664,1740682249763,-350.0,0.0003,120]
[354774665,1740682249772,-151.0,0.00030187,7]
[354774666,1740682249781,-151.0,0.00030187,7]
[354774667,1740682249791,-2658.35266994,0.00030187,3]
[354774668,1740682249800,-319.0,0.00031,2]
[354774669,1740682249810,-500.0,0.00031,2]
[354774670,1740682249819,-179.88,0.0003105,2]
[354774671,1740682249828,-2029.0,0.00031137,2]
[354774672,1740682249838,-398.058,0.00031137,2]
[354774673,1740682249847,-639.0,0.00031137,2]
[354774674,1740682249856,-911.0,0.00031137,2]
[354774675,1740682249865,-785.0,0.00031137,2]
[354774676,1740682249874,-662.394,0.00031137,2]
[354774677,1740682249884,-1267.0,0.00031137,2]
[354774678,1740682249893,-1429.537,0.00031137,2]
[354774679,1740682249902,-913.138,0.00031137,2]
[354774680,1740682249911,-4035.0,0.00031137,2]
[354774681,1740682249920,-487.213,0.00031137,2]
[354774682,1740682249930,-150.0,0.00031137,2]
[354774683,1740682249939,-3917.0,0.00031137,2]
[354774684,1740682249948,-1111.0,0.00031137,2]
[354774685,1740682249957,-4248.23191707,0.00031598,2]
[354774686,1740682249966,-203.91694076,0.0003165,6]
[354774687,1740682249975,-471.71963867,0.00031653,2]
[354774688,1740682249984,-735.62,0.00031681,2]
[354774689,1740682249993,-165.57,0.0003175,30]
[354774690,1740682250002,-193.75,0.00031798,2]
[354774691,1740682250014,-477.0515508,0.00032224,30]
[354774692,1740682250024,-206.0,0.00032646,2]
[354774693,1740682250033,-550.0,0.00033,2]
[354774694,1740682250042,-203.91694076,0.000334,6]
[354774695,1740682250051,-1000.0,0.00033863,5]
[354774696,1740682250061,-735.62,0.00033945,2]
[354774697,1740682250070,-481.37008837,0.00034,2]
[354774698,1740682250079,-500.0,0.00034027,5]
[354774699,1740682250088,-963.953,0.00034137,2]
[354774700,1740682250097,-408.913,0.00034137,2]
[354774701,1740682250106,-1425.0,0.00034137,2]
[354774702,1740682250115,-908.0,0.00034137,2]
[354774703,1740682250125,-3263.099,0.00034137,2]
[354774704,1740682250134,-150.0,0.00034137,2]
[354774705,1740682250143,-1111.0,0.00034137,2]
[354774706,1740682250152,-154.75,0.00034192,2]
[354774707,1740682250161,-154.15,0.00034247,2]
[354774708,1740682250170,-150.0,0.00034548,10]
[354774709,1740682250179,-267.21590202,0.00034602,5]
[354774710,1740682250188,-235.71910536,0.000349,2]
[354774711,1740682250197,-4248.23191707,0.00034937,2]
[354774712,1740682250207,-1034.43293807,0.00035,2]
[354774713,1740682250216,-15160.80678391,0.00035,5]
[354774714,1740682250225,-600.0,0.00035,2]
[354774715,1740682250234,-471.71963867,0.00035004,2]
[354774716,1740682250244,-203.91694076,0.0003515,7]
[354774717,1740682250253,-735.62,0.00036209,2]
[354774718,1740682250263,-203.91694076,0.000369,7]
[354774719,1740682250271,-650.0,0.00037,2]
[354774720,1740682250280,-150.0,0.00037137,2]
[354774721,1740682250290,-720.92,0.00037137,2]
[354774722,1740682250298,-168.0940038,0.000372,103]
[354774723,1740682250310,-2000.0,0.00038254,5]
[354774724,1740682250319,-4248.23191707,0.00038277,2]
[354774725,1740682250328,-471.71963867,0.00038355,2]
[354774726,1740682250337,-1723.0114523,0.00038441,2]
[354774727,1740682250347,-206.0,0.00038443,2]
[354774728,1740682250356,-735.62,0.00038473,2]
[354774729,1740682250366,-1313.728,0.00038525,52]
[354774730,1740682250375,-329.91563913,0.00038525,2]
[354774731,1740682250383,-203.91694076,0.0003865,8]
[354774732,1740682250392,-165.57,0.00038787,120]
[354774733,1740682250402,-456.94189566,0.00039,15]
[354774734,1740682250411,-3310.91,0.00039,2]
[354774735,1740682250420,-151.0,0.00039,14]
[354774736,1740682250592,-700.0,0.00039,2]
[354774737,1740682250601,-159.894748,0.0004016,2]
[354774738,1740682250611,-179.88,0.00040183,2]
[354774739,1740682250620,-203.91694076,0.000404,8]
[354774740,1740682250629,-735.62,0.00040737,2]
[354774741,1740682250638,-32449.43967505,0.00041,14]
[354774742,1740682250647,-151.0,0.00041,14]
[354774743,1740682250656,-151.0,0.00041,14]
[354774744,1740682250666,-750.0,0.00041,2]
[354774745,1740682250675,-1500.0,0.00041096,120]
[354774746,1740682250684,-154.15,0.00041096,2]
[354774747,1740682250694,-2000.0,0.00041384,5]
[354774748,1740682250703,-154.75,0.00041534,2]
[354774749,1740682250712,-235.71910536,0.00041567,4]
[354774750,1740682250722,-4248.23191707,0.00041616,15]
[354774751,1740682250731,-471.71963867,0.00041705,15]
[354774752,1740682250740,-6981.04783703,0.00041917,11]
[354774753,1740682250749,-500.0,0.00042029,2]
[354774754,1740682250758,-500.0,0.00042029,2]
[354774755,1740682250767,-500.0,0.00042029,2]
[354774756,1740682250776,-500.0,0.00042029,2]
[354774757,1740682250785,-500.0,0.00042029,2]
[354774758,1740682250794,-500.0,0.00042029,2]
[354774759,1740682250804,-500.0,0.00042029,2]
[354774760,1740682250813,-500.0,0.00042029,2]
[354774761,1740682250822,-500.0,0.00042029,2]
[354774762,1740682250831,-500.0,0.00042029,2]
[354774763,1740682250840,-500.0,0.00042029,2]
[354774764,1740682250850,-500.0,0.00042029,2]
[354774765,1740682250859,-500.0,0.00042029,2]
[354774766,1740682250868,-500.0,0.00042029,2]
[354774767,1740682250877,-500.0,0.00042029,2]
[354774768,1740682250887,-500.0,0.00042029,2]
[354774769,1740682250895,-500.0,0.00042029,2]
[354774770,1740682250904,-500.0,0.00042029,2]
[354774771,1740682250913,-500.0,0.00042029,2]
[354774772,1740682250922,-500.0,0.00042029,2]
[354774773,1740682250931,-500.0,0.00042029,2]
[354774774,1740682250940,-500.0,0.00042029,2]
[354774775,1740682250949,-500.0,0.00042029,2]
[354774776,1740682250958,-500.0,0.00042029,2]
[354774777,1740682250967,-500.0,0.00042029,2]
[354774778,1740682250976,-500.0,0.00042029,2]
[354774779,1740682250985,-500.0,0.00042029,2]
[354774780,1740682250994,-500.0,0.00042029,2]
[354774781,1740682251004,-500.0,0.00042029,2]
[354774782,1740682251013,-500.0,0.00042029,2]
[354774783,1740682251025,-500.0,0.00042029,2]
[354774784,1740682251034,-500.0,0.00042029,2]
[354774785,1740682251043,-500.0,0.00042029,2]
[354774786,1740682251052,-500.0,0.00042029,2]
[354774787,1740682251062,-500.0,0.00042029,2]
[354774788,1740682251071,-500.0,0.00042029,2]
[354774789,1740682251080,-500.0,0.00042029,2]
[354774790,1740682251089,-500.0,0.00042029,2]
[354774791,1740682251100,-500.0,0.00042029,2]
[354774792,1740682251110,-500.0,0.00042029,2]
[354774793,1740682251118,-500.0,0.00042029,2]
[354774794,1740682251127,-500.0,0.00042029,2]
[354774795,1740682251136,-500.0,0.00042029,2]
[354774796,1740682251145,-500.0,0.00042029,2]
[354774797,1740682251155,-500.0,0.00042029,2]
[354774798,1740682251164,-500.0,0.00042029,2]
[354774799,1740682251173,-500.0,0.00042029,2]
[354774800,1740682251182,-500.0,0.00042029,2]
[354774801,1740682251191,-500.0,0.00042029,2]
[354774802,1740682251200,-500.0,0.00042029,2]
[354774803,1740682251209,-500.0,0.00042029,2]
[354774804,1740682251219,-500.0,0.00042029,2]
[354774805,1740682251228,-500.0,0.00042029,2]
[354774806,1740682251238,-500.0,0.00042029,2]
[354774807,1740682251247,-500.0,0.00042029,2]
[354774808,1740682251256,-500.0,0.00042029,2]
[354774809,1740682251266,-500.0,0.00042029,2]
[354774810,1740682251275,-500.0,0.00042029,2]
[354774811,1740682251284,-500.0,0.00042029,2]
[354774812,1740682251294,-500.0,0.00042029,2]
[354774813,1740682251303,-500.0,0.00042029,2]
[354774814,1740682251313,-500.0,0.00042029,2]
[354774815,1740682251323,-500.0,0.00042029,2]
[354774816,1740682251331,-500.0,0.00042029,2]
[354774817,1740682251341,-500.0,0.00042029,2]
[354774818,1740682251350,-500.0,0.00042029,2]
[354774819,1740682251360,-500.0,0.00042029,2]
[354774820,1740682251369,-500.0,0.00042029,2]
[354774821,1740682251378,-500.0,0.00042029,2]
[354774822,1740682251388,-500.0,0.00042029,2]
[354774823,1740682251397,-500.0,0.00042029,2]
[354774824,1740682251406,-500.0,0.00042029,2]
[354774825,1740682251416,-500.0,0.00042029,2]
[354774826,1740682251425,-500.0,0.00042029,2]
[354774827,1740682251434,-500.0,0.00042029,2]
[354774828,1740682251443,-500.0,0.00042029,2]
[354774829,1740682251452,-500.0,0.00042029,2]
[354774830,1740682251461,-500.0,0.00042029,2]
[354774831,1740682251470,-500.0,0.00042029,2]
[354774832,1740682251479,-500.0,0.00042029,2]
[354774833,1740682251488,-500.0,0.00042029,2]
[354774834,1740682251497,-500.0,0.00042029,2]
[354774835,1740682251507,-500.0,0.00042029,2]
[354774836,1740682251516,-500.0,0.00042029,2]
[354774837,1740682251525,-500.0,0.00042029,2]
[354774838,1740682251535,-500.0,0.00042029,2]
[354774839,1740682251544,-500.0,0.00042029,2]
[354774840,1740682251553,-500.0,0.00042029,2]
[354774841,1740682251563,-500.0,0.00042029,2]
[354774842,1740682251572,-500.0,0.00042029,2]
[354774843,1740682251581,-500.0,0.00042029,2]
[354774844,1740682251591,-500.0,0.00042029,2]
[354774845,1740682251600,-976.0,0.00042029,2]
[354774846,1740682251609,-500.0,0.00042029,2]
[354774847,1740682251618,-500.0,0.00042029,2]
[354774848,1740682251628,-500.0,0.00042029,2]
[354774849,1740682251637,-500.0,0.00042029,2]